[Event "Late-Titled-Tuesday-Blitz-February-13-2024"]
[Site "Chess.com"]
[Date "2024.02.13"]
[Round "5"]
[White "Jarrahi2452"]
[Black "Baronessa08"]
[Result "1-0"]
[WhiteElo "2818"]
[BlackElo "2544"]
[TimeControl "180+1"]
[EndTime "14:56:31 PST"]
[Termination "Jarrahi2452 won by checkmate"]

1. d4 {[%clk 0:03:00.9]} 1... d5 {[%clk 0:02:58.9]} 2. c4 {[%clk 0:03:00.8]}
2... c6 {[%clk 0:02:57.3]} 3. cxd5 {[%clk 0:02:58.8]} 3... cxd5 {[%clk
0:02:56.9]} 4. Nc3 {[%clk 0:02:58.9]} 4... Nf6 {[%clk 0:02:55.6]} 5. Bf4 {[%clk
0:02:57.9]} 5... a6 {[%clk 0:02:54.7]} 6. f3 {[%clk 0:02:52.3]} 6... Nc6 {[%clk
0:02:52.6]} 7. e3 {[%clk 0:02:51.9]} 7... g6 {[%clk 0:02:50]} 8. Bd3 {[%clk
0:02:49.3]} 8... Bg7 {[%clk 0:02:49.5]} 9. Nge2 {[%clk 0:02:48.6]} 9... O-O
{[%clk 0:02:45.1]} 10. O-O {[%clk 0:02:46.9]} 10... Nh5 {[%clk 0:02:30.8]} 11.
Bg5 {[%clk 0:02:44.6]} 11... h6 {[%clk 0:02:30.4]} 12. Bh4 {[%clk 0:02:42.7]}
12... g5 {[%clk 0:02:30.8]} 13. Bf2 {[%clk 0:02:41.1]} 13... f5 {[%clk
0:02:30.8]} 14. Ng3 {[%clk 0:02:33.2]} 14... Nxg3 {[%clk 0:02:21.8]} 15. hxg3
{[%clk 0:02:31.8]} 15... e6 {[%clk 0:02:16.8]} 16. Bc2 {[%clk 0:02:27.7]} 16...
Bd7 {[%clk 0:02:13.5]} 17. a3 {[%clk 0:02:13.7]} 17... Rc8 {[%clk 0:02:12.1]}
18. Bd3 {[%clk 0:02:06.3]} 18... Ne7 {[%clk 0:01:53.3]} 19. Rc1 {[%clk
0:02:03.7]} 19... Qb6 {[%clk 0:01:49.1]} 20. b4 {[%clk 0:02:00.9]} 20... Rc7
{[%clk 0:01:40.3]} 21. Na4 {[%clk 0:01:53.9]} 21... Bxa4 {[%clk 0:01:38.5]} 22.
Qxa4 {[%clk 0:01:52.9]} 22... Rfc8 {[%clk 0:01:36.6]} 23. Rc5 {[%clk 0:01:50.9]}
23... Ng6 {[%clk 0:01:27.9]} 24. Rfc1 {[%clk 0:01:49.3]} 24... Bf8 {[%clk
0:01:25.8]} 25. Rxc7 {[%clk 0:01:46.3]} 25... Rxc7 {[%clk 0:01:25]} 26. Qd1
{[%clk 0:01:46.5]} 26... Bd6 {[%clk 0:01:18.5]} 27. Rxc7 {[%clk 0:01:39.6]}
27... Qxc7 {[%clk 0:01:18.3]} 28. Qe1 {[%clk 0:01:37.8]} 28... Ne7 {[%clk
0:00:48.8]} 29. e4 {[%clk 0:01:36.2]} 29... Qd7 {[%clk 0:00:49.1]} 30. Qe2
{[%clk 0:01:29.8]} 30... Bc7 {[%clk 0:00:45]} 31. exf5 {[%clk 0:01:26]} 31...
Nxf5 {[%clk 0:00:40.3]} 32. g4 {[%clk 0:01:23.7]} 32... Ne7 {[%clk 0:00:39.9]}
33. b5 {[%clk 0:01:22.2]} 33... a5 {[%clk 0:00:37.1]} 34. Qc2 {[%clk 0:01:20]}
34... Bd6 {[%clk 0:00:31.3]} 35. a4 {[%clk 0:01:19.9]} 35... Qc7 {[%clk
0:00:29.6]} 36. Qe2 {[%clk 0:01:16.3]} 36... Kf7 {[%clk 0:00:27.5]} 37. Be3
{[%clk 0:01:11.5]} 37... Bf4 {[%clk 0:00:25.2]} 38. Qd2 {[%clk 0:01:06.3]} 38...
Bxe3+ {[%clk 0:00:24.1]} 39. Qxe3 {[%clk 0:01:07.2]} 39... Qd6 {[%clk
0:00:20.8]} 40. Kf2 {[%clk 0:01:04.7]} 40... b6 {[%clk 0:00:21.1]} 41. g3 {[%clk
0:01:04.4]} 41... Qb4 {[%clk 0:00:18.6]} 42. f4 {[%clk 0:01:02.2]} 42... Qxa4
{[%clk 0:00:16]} 43. fxg5 {[%clk 0:00:58.7]} 43... hxg5 {[%clk 0:00:16.9]} 44.
Qxg5 {[%clk 0:00:52.3]} 44... Qa2+ {[%clk 0:00:17.1]} 45. Ke3 {[%clk 0:00:48.9]}
45... Qb3 {[%clk 0:00:15.8]} 46. Qh5+ {[%clk 0:00:47.7]} 46... Kf8 {[%clk
0:00:15.8]} 47. Qh6+ {[%clk 0:00:47.8]} 47... Ke8 {[%clk 0:00:15.7]} 48. Qxe6
{[%clk 0:00:46.8]} 48... a4 {[%clk 0:00:11.8]} 49. g5 {[%clk 0:00:44.7]} 49...
a3 {[%clk 0:00:12.1]} 50. g6 {[%clk 0:00:43.6]} 50... a2 {[%clk 0:00:12.4]} 51.
g7 {[%clk 0:00:42.1]} 51... Kd8 {[%clk 0:00:06.7]} 52. g8=Q+ {[%clk 0:00:40.5]}
52... Nxg8 {[%clk 0:00:06.9]} 53. Qxg8+ {[%clk 0:00:39.3]} 53... Kd7 {[%clk
0:00:05.8]} 54. Qa8 {[%clk 0:00:39.4]} 54... Qb2 {[%clk 0:00:04.7]} 55. Qxd5+
{[%clk 0:00:38.3]} 55... Ke8 {[%clk 0:00:03.5]} 56. Bg6+ {[%clk 0:00:37.2]}
56... Ke7 {[%clk 0:00:03.9]} 57. Qe5+ {[%clk 0:00:36.4]} 57... Kd7 {[%clk
0:00:03.9]} 58. Bf5+ {[%clk 0:00:36]} 58... Kd8 {[%clk 0:00:03.5]} 59. Qd6+
{[%clk 0:00:35.2]} 59... Ke8 {[%clk 0:00:03.8]} 60. Bg6# {[%clk 0:00:35.2]} 1-0

[Event "Late-Titled-Tuesday-Blitz-February-13-2024"]
[Site "Chess.com"]
[Date "2024.02.13"]
[Round "5"]
[White "MetiForce"]
[Black "manitodeplomo"]
[Result "1-0"]
[WhiteElo "2863"]
[BlackElo "2640"]
[TimeControl "180+1"]
[EndTime "14:56:33 PST"]
[Termination "MetiForce won on time"]

1. d4 {[%clk 0:03:00.9]} 1... g6 {[%clk 0:02:57.6]} 2. c4 {[%clk 0:02:44]} 2...
Bg7 {[%clk 0:02:56.9]} 3. e4 {[%clk 0:02:41.8]} 3... d6 {[%clk 0:02:56]} 4. Nc3
{[%clk 0:02:41.6]} 4... Nf6 {[%clk 0:02:54.6]} 5. Be2 {[%clk 0:02:40.3]} 5...
O-O {[%clk 0:02:54]} 6. Nf3 {[%clk 0:02:40.5]} 6... c5 {[%clk 0:02:54.3]} 7. d5
{[%clk 0:02:33.8]} 7... e5 {[%clk 0:02:48.3]} 8. O-O {[%clk 0:02:23.3]} 8...
Nbd7 {[%clk 0:02:42.1]} 9. a3 {[%clk 0:02:22.9]} 9... a6 {[%clk 0:02:39.9]} 10.
b4 {[%clk 0:02:21.4]} 10... b6 {[%clk 0:02:39.4]} 11. Rb1 {[%clk 0:02:20.9]}
11... Kh8 {[%clk 0:02:37.7]} 12. g3 {[%clk 0:02:17.8]} 12... Ng8 {[%clk
0:02:34.5]} 13. Nh4 {[%clk 0:02:08]} 13... Bh6 {[%clk 0:02:31.1]} 14. Kh1 {[%clk
0:02:05]} 14... Bxc1 {[%clk 0:02:29]} 15. Qxc1 {[%clk 0:02:05.9]} 15... Kg7
{[%clk 0:02:28]} 16. Ng2 {[%clk 0:02:03.6]} 16... Nh6 {[%clk 0:02:13.8]} 17. f4
{[%clk 0:01:57.7]} 17... f6 {[%clk 0:01:48.6]} 18. Rf2 {[%clk 0:01:55.4]} 18...
Qe7 {[%clk 0:01:42.1]} 19. Bd1 {[%clk 0:01:50.9]} 19... cxb4 {[%clk 0:01:37.3]}
20. axb4 {[%clk 0:01:50.6]} 20... a5 {[%clk 0:01:37.8]} 21. Ra2 {[%clk
0:01:43.4]} 21... Ba6 {[%clk 0:01:24.3]} 22. Be2 {[%clk 0:01:00.6]} 22... axb4
{[%clk 0:01:11.3]} 23. Rxb4 {[%clk 0:01:01.5]} 23... Rfb8 {[%clk 0:01:10.4]} 24.
Qa1 {[%clk 0:00:50]} 24... Bb7 {[%clk 0:01:03.2]} 25. Rba4 {[%clk 0:00:48.4]}
25... Rxa4 {[%clk 0:01:01.6]} 26. Rxa4 {[%clk 0:00:49.3]} 26... Nc5 {[%clk
0:01:00]} 27. Ra7 {[%clk 0:00:49.8]} 27... Qd8 {[%clk 0:00:58.2]} 28. Nb5 {[%clk
0:00:47.9]} 28... Nf7 {[%clk 0:00:55]} 29. Bf3 {[%clk 0:00:40.1]} 29... Ra8
{[%clk 0:00:49.3]} 30. Ne3 {[%clk 0:00:39.1]} 30... Qb8 {[%clk 0:00:42.3]} 31.
Rxa8 {[%clk 0:00:35.8]} 31... Qxa8 {[%clk 0:00:41.9]} 32. Qxa8 {[%clk 0:00:34]}
32... Bxa8 {[%clk 0:00:42.8]} 33. Kg2 {[%clk 0:00:18.7]} 33... Bb7 {[%clk
0:00:42.4]} 34. h4 {[%clk 0:00:13.4]} 34... Ba6 {[%clk 0:00:41.5]} 35. Nc7
{[%clk 0:00:12.9]} 35... Bb7 {[%clk 0:00:27.2]} 36. Bg4 {[%clk 0:00:12.7]} 36...
Kf8 {[%clk 0:00:25.1]} 37. Kf3 {[%clk 0:00:09.7]} 37... Ke7 {[%clk 0:00:24.9]}
38. Be6 {[%clk 0:00:09]} 38... Nxe6 {[%clk 0:00:09.7]} 39. Nxe6 {[%clk
0:00:09.9]} 39... Bc8 {[%clk 0:00:09.2]} 40. Nc7 {[%clk 0:00:10.1]} 40... Bd7
{[%clk 0:00:09.6]} 41. Na8 {[%clk 0:00:08.6]} 41... Bc8 {[%clk 0:00:04.5]} 42.
Nxb6 {[%clk 0:00:08.7]} 42... Ba6 {[%clk 0:00:05]} 43. f5 {[%clk 0:00:07]} 43...
Nd8 {[%clk 0:00:03.9]} 44. fxg6 {[%clk 0:00:05.9]} 44... hxg6 {[%clk 0:00:04.8]}
45. g4 {[%clk 0:00:06.6]} 45... Nb7 {[%clk 0:00:04.5]} 46. h5 {[%clk 0:00:06.4]}
46... Kf7 {[%clk 0:00:02.9]} 47. Nc8 {[%clk 0:00:04.8]} 47... Kg7 {[%clk
0:00:01.9]} 48. hxg6 {[%clk 0:00:04.6]} 48... Kxg6 {[%clk 0:00:02.2]} 49. Nf5
{[%clk 0:00:05]} 49... Kg5 {[%clk 0:00:01.9]} 50. Ncxd6 {[%clk 0:00:05.3]} 50...
Nxd6 {[%clk 0:00:02.3]} 51. Nxd6 {[%clk 0:00:06.2]} 1-0

[Event "Late-Titled-Tuesday-Blitz-February-13-2024"]
[Site "Chess.com"]
[Date "2024.02.13"]
[Round "5"]
[White "Alexei_Gubajdullin"]
[Black "rezamahdavi2008"]
[Result "0-1"]
[WhiteElo "2638"]
[BlackElo "2863"]
[TimeControl "180+1"]
[EndTime "14:56:34 PST"]
[Termination "rezamahdavi2008 won by checkmate"]

1. Nf3 {[%clk 0:02:58]} 1... Nf6 {[%clk 0:02:56.5]} 2. g3 {[%clk 0:02:57.4]}
2... b6 {[%clk 0:02:52.2]} 3. Bh3 {[%clk 0:02:57]} 3... Bb7 {[%clk 0:02:51.1]}
4. O-O {[%clk 0:02:56.1]} 4... g6 {[%clk 0:02:51.1]} 5. c4 {[%clk 0:02:55.9]}
5... Bg7 {[%clk 0:02:51.5]} 6. Nc3 {[%clk 0:02:56]} 6... O-O {[%clk 0:02:51.6]}
7. d4 {[%clk 0:02:55.7]} 7... Ne4 {[%clk 0:02:45.9]} 8. Nxe4 {[%clk 0:02:55.4]}
8... Bxe4 {[%clk 0:02:46.8]} 9. d5 {[%clk 0:02:55.6]} 9... Bxf3 {[%clk
0:02:32.7]} 10. exf3 {[%clk 0:02:55.1]} 10... c6 {[%clk 0:02:32.9]} 11. Re1
{[%clk 0:02:53.6]} 11... cxd5 {[%clk 0:02:18.1]} 12. cxd5 {[%clk 0:02:53.4]}
12... d6 {[%clk 0:02:14.3]} 13. Qa4 {[%clk 0:02:51.4]} 13... a5 {[%clk
0:02:07.6]} 14. Bg5 {[%clk 0:02:40.7]} 14... Bf6 {[%clk 0:02:07]} 15. Bxf6
{[%clk 0:02:37.3]} 15... exf6 {[%clk 0:02:07.9]} 16. Re2 {[%clk 0:02:29]} 16...
Na6 {[%clk 0:02:06.8]} 17. Rae1 {[%clk 0:02:28.2]} 17... Nc5 {[%clk 0:02:07.3]}
18. Qh4 {[%clk 0:02:27.9]} 18... f5 {[%clk 0:02:04.2]} 19. Qf4 {[%clk
0:02:24.5]} 19... Nd3 {[%clk 0:02:01.2]} 20. Qd4 {[%clk 0:02:20.9]} 20... Nxe1
{[%clk 0:02:01.2]} 21. Rxe1 {[%clk 0:02:21.1]} 21... Qc7 {[%clk 0:01:56.8]} 22.
g4 {[%clk 0:02:20.5]} 22... fxg4 {[%clk 0:01:55.7]} 23. fxg4 {[%clk 0:02:20.3]}
23... Rfe8 {[%clk 0:01:55.7]} 24. Rd1 {[%clk 0:02:19.9]} 24... Qc5 {[%clk
0:01:53.7]} 25. Qf4 {[%clk 0:02:19.1]} 25... Re5 {[%clk 0:01:52.1]} 26. Rd3
{[%clk 0:02:12.9]} 26... Rae8 {[%clk 0:01:44.6]} 27. Bf1 {[%clk 0:02:11.8]}
27... R8e7 {[%clk 0:01:29.2]} 28. Rf3 {[%clk 0:02:10.2]} 28... Qxd5 {[%clk
0:01:17.3]} 29. Bc4 {[%clk 0:02:09]} 29... Qd1+ {[%clk 0:01:16.7]} 30. Kg2
{[%clk 0:02:08.8]} 30... d5 {[%clk 0:01:16.7]} 31. Bb3 {[%clk 0:02:06.7]} 31...
Qe2 {[%clk 0:01:11.6]} 32. Qf6 {[%clk 0:02:04.4]} 32... Qe4 {[%clk 0:01:08.9]}
33. h3 {[%clk 0:02:02.9]} 33... R5e6 {[%clk 0:01:05.8]} 34. Qg5 {[%clk
0:02:02.6]} 34... Rd7 {[%clk 0:01:00.8]} 35. a3 {[%clk 0:01:48.2]} 35... a4
{[%clk 0:00:59]} 36. Ba2 {[%clk 0:01:42]} 36... Qe5 {[%clk 0:00:51.3]} 37. Qd2
{[%clk 0:01:38.3]} 37... Qe4 {[%clk 0:00:36.3]} 38. Qc3 {[%clk 0:01:31.8]} 38...
Rdd6 {[%clk 0:00:25.9]} 39. g5 {[%clk 0:01:13.7]} 39... Qe5 {[%clk 0:00:21.9]}
40. Qc8+ {[%clk 0:01:10.6]} 40... Kg7 {[%clk 0:00:19.4]} 41. h4 {[%clk
0:01:10.5]} 41... Qe4 {[%clk 0:00:18.8]} 42. Qc7 {[%clk 0:01:08]} 42... Qg4+
{[%clk 0:00:16.4]} 43. Rg3 {[%clk 0:01:06.2]} 43... Qxh4 {[%clk 0:00:16.1]} 44.
Qb7 {[%clk 0:01:05.6]} 44... Re5 {[%clk 0:00:13.3]} 45. Qc7 {[%clk 0:01:03.8]}
45... Rde6 {[%clk 0:00:13.1]} 46. Qc3 {[%clk 0:01:01.3]} 46... Qe4+ {[%clk
0:00:11.7]} 47. Kh2 {[%clk 0:00:59.8]} 47... Qe1 {[%clk 0:00:09.1]} 48. Qd4
{[%clk 0:00:56]} 48... Qe4 {[%clk 0:00:09.2]} 49. Qc3 {[%clk 0:00:55.7]} 49...
Kg8 {[%clk 0:00:09.8]} 50. Kg1 {[%clk 0:00:46.7]} 50... Qe1+ {[%clk 0:00:09.4]}
51. Kg2 {[%clk 0:00:46.3]} 51... Qxc3 {[%clk 0:00:09.1]} 52. Rxc3 {[%clk
0:00:45.7]} 52... Rxg5+ {[%clk 0:00:08.9]} 53. Kf1 {[%clk 0:00:46]} 53... h5
{[%clk 0:00:07.6]} 54. Rc8+ {[%clk 0:00:44.7]} 54... Kg7 {[%clk 0:00:07.7]} 55.
Rd8 {[%clk 0:00:44.9]} 55... Ree5 {[%clk 0:00:05.3]} 56. Bb1 {[%clk 0:00:43.6]}
56... Rg4 {[%clk 0:00:04.8]} 57. f3 {[%clk 0:00:42.4]} 57... Rf4 {[%clk
0:00:04.8]} 58. Kg2 {[%clk 0:00:42.4]} 58... h4 {[%clk 0:00:04.9]} 59. Ba2
{[%clk 0:00:42.2]} 59... Re2+ {[%clk 0:00:04.7]} 60. Kh3 {[%clk 0:00:41.3]}
60... Rxf3+ {[%clk 0:00:02.9]} 61. Kxh4 {[%clk 0:00:42.2]} 61... Re4+ {[%clk
0:00:03.1]} 62. Kg5 {[%clk 0:00:41.5]} 62... Rf5# {[%clk 0:00:04]} 0-1

[Event "Late-Titled-Tuesday-Blitz-February-13-2024"]
[Site "Chess.com"]
[Date "2024.02.13"]
[Round "5"]
[White "subham777"]
[Black "CaspiIsrael"]
[Result "1-0"]
[WhiteElo "2540"]
[BlackElo "2804"]
[TimeControl "180+1"]
[EndTime "14:56:36 PST"]
[Termination "subham777 won by checkmate"]

1. e4 {[%clk 0:03:00.9]} 1... d5 {[%clk 0:02:59.6]} 2. exd5 {[%clk 0:02:58.5]}
2... Qxd5 {[%clk 0:03:00.5]} 3. Nf3 {[%clk 0:02:58]} 3... Bg4 {[%clk 0:02:59.8]}
4. Nc3 {[%clk 0:02:52.3]} 4... Qe6+ {[%clk 0:02:59]} 5. Be2 {[%clk 0:02:51.5]}
5... Bxf3 {[%clk 0:02:58.7]} 6. gxf3 {[%clk 0:02:52.1]} 6... Nc6 {[%clk
0:02:57.1]} 7. d4 {[%clk 0:02:51.5]} 7... O-O-O {[%clk 0:02:56.5]} 8. Be3 {[%clk
0:02:48.2]} 8... Nf6 {[%clk 0:02:55.9]} 9. Qd3 {[%clk 0:02:45.5]} 9... Nb4
{[%clk 0:02:52]} 10. Qd2 {[%clk 0:02:42.2]} 10... g6 {[%clk 0:02:49.4]} 11. a3
{[%clk 0:02:40.2]} 11... Nbd5 {[%clk 0:02:48.8]} 12. Nxd5 {[%clk 0:02:39.5]}
12... Nxd5 {[%clk 0:02:46.9]} 13. c4 {[%clk 0:02:39]} 13... Nxe3 {[%clk
0:02:42.5]} 14. fxe3 {[%clk 0:02:39.9]} 14... Bg7 {[%clk 0:02:29.7]} 15. O-O-O
{[%clk 0:02:33.5]} 15... Kb8 {[%clk 0:02:29.7]} 16. Kb1 {[%clk 0:02:13.5]} 16...
Qh3 {[%clk 0:02:08.8]} 17. Rdg1 {[%clk 0:01:39.1]} 17... Qf5+ {[%clk 0:01:50.8]}
18. Qc2 {[%clk 0:01:29.5]} 18... Qxc2+ {[%clk 0:01:47.5]} 19. Kxc2 {[%clk
0:01:30.4]} 19... e5 {[%clk 0:01:37.6]} 20. d5 {[%clk 0:01:25.9]} 20... f5
{[%clk 0:01:36.3]} 21. e4 {[%clk 0:01:24.3]} 21... fxe4 {[%clk 0:01:31.2]} 22.
fxe4 {[%clk 0:01:24]} 22... Bh6 {[%clk 0:01:31.8]} 23. h4 {[%clk 0:01:08.2]}
23... Be3 {[%clk 0:01:29.2]} 24. Rf1 {[%clk 0:01:04.5]} 24... Rhf8 {[%clk
0:01:28.5]} 25. Kd3 {[%clk 0:00:57.2]} 25... Bd4 {[%clk 0:01:26.3]} 26. b4
{[%clk 0:00:56]} 26... c6 {[%clk 0:01:25]} 27. h5 {[%clk 0:00:36.7]} 27... cxd5
{[%clk 0:01:23.6]} 28. exd5 {[%clk 0:00:33.4]} 28... g5 {[%clk 0:01:21.1]} 29.
Rxf8 {[%clk 0:00:32.1]} 29... Rxf8 {[%clk 0:01:20]} 30. Rf1 {[%clk 0:00:32.8]}
30... Bf2 {[%clk 0:01:10.1]} 31. Ke4 {[%clk 0:00:17.5]} 31... b6 {[%clk
0:01:04.1]} 32. d6 {[%clk 0:00:09.7]} 32... Kc8 {[%clk 0:00:56.5]} 33. c5 {[%clk
0:00:07.5]} 33... bxc5 {[%clk 0:00:51.9]} 34. bxc5 {[%clk 0:00:08.4]} 34... Rf4+
{[%clk 0:00:46.7]} 35. Kd5 {[%clk 0:00:08.2]} 35... g4 {[%clk 0:00:23.2]} 36.
Bxg4+ {[%clk 0:00:07]} 36... Kd8 {[%clk 0:00:21.1]} 37. c6 {[%clk 0:00:07.2]}
37... Rd4+ {[%clk 0:00:20.6]} 38. Ke6 {[%clk 0:00:07]} 38... Rxg4 {[%clk
0:00:18.9]} 39. Rxf2 {[%clk 0:00:07.3]} 39... Rg8 {[%clk 0:00:18.4]} 40. Kxe5
{[%clk 0:00:05.2]} 40... Re8+ {[%clk 0:00:15.4]} 41. Kd5 {[%clk 0:00:05.6]}
41... Rg8 {[%clk 0:00:13.1]} 42. Rf5 {[%clk 0:00:04]} 42... h6 {[%clk
0:00:12.5]} 43. Re5 {[%clk 0:00:04.2]} 43... Rg1 {[%clk 0:00:10.4]} 44. c7+
{[%clk 0:00:04.1]} 44... Kd7 {[%clk 0:00:09.4]} 45. Re7+ {[%clk 0:00:04.5]}
45... Kc8 {[%clk 0:00:09.5]} 46. Re8+ {[%clk 0:00:05.2]} 46... Kb7 {[%clk
0:00:09.9]} 47. c8=Q+ {[%clk 0:00:05.8]} 47... Kb6 {[%clk 0:00:10.1]} 48. Qc5+
{[%clk 0:00:06.3]} 48... Ka6 {[%clk 0:00:10.1]} 49. Qxg1 {[%clk 0:00:06]} 49...
Ka5 {[%clk 0:00:09.5]} 50. Qxa7+ {[%clk 0:00:06.2]} 50... Kb5 {[%clk 0:00:09.6]}
51. Qc7 {[%clk 0:00:06.5]} 51... Ka4 {[%clk 0:00:09.6]} 52. Rb8 {[%clk
0:00:06.8]} 52... Kxa3 {[%clk 0:00:09.4]} 53. Qa7# {[%clk 0:00:07.5]} 1-0

[Event "Late-Titled-Tuesday-Blitz-February-13-2024"]
[Site "Chess.com"]
[Date "2024.02.13"]
[Round "5"]
[White "VitorBronson"]
[Black "CarlosjPineror"]
[Result "0-1"]
[WhiteElo "2505"]
[BlackElo "2690"]
[TimeControl "180+1"]
[EndTime "14:56:37 PST"]
[Termination "CarlosjPineror won by resignation"]

1. d4 {[%clk 0:02:59.2]} 1... Nf6 {[%clk 0:03:00]} 2. c4 {[%clk 0:02:58.7]} 2...
e6 {[%clk 0:03:00.3]} 3. Nf3 {[%clk 0:02:58.5]} 3... Bb4+ {[%clk 0:03:00.6]} 4.
Bd2 {[%clk 0:02:58]} 4... Qe7 {[%clk 0:03:01.1]} 5. a3 {[%clk 0:02:56]} 5...
Bxd2+ {[%clk 0:03:00.7]} 6. Qxd2 {[%clk 0:02:54.6]} 6... O-O {[%clk 0:03:01.6]}
7. Nc3 {[%clk 0:02:54.6]} 7... d6 {[%clk 0:03:01.9]} 8. e4 {[%clk 0:02:54.1]}
8... e5 {[%clk 0:03:02.2]} 9. d5 {[%clk 0:02:52]} 9... a5 {[%clk 0:03:01.8]} 10.
b3 {[%clk 0:02:51.4]} 10... Nbd7 {[%clk 0:03:01.3]} 11. Bd3 {[%clk 0:02:50.3]}
11... Nc5 {[%clk 0:03:01.7]} 12. Bc2 {[%clk 0:02:50.5]} 12... Bg4 {[%clk
0:03:01.4]} 13. Ng1 {[%clk 0:02:48.1]} 13... Nh5 {[%clk 0:02:57.7]} 14. f3
{[%clk 0:02:46.2]} 14... Bd7 {[%clk 0:02:56.3]} 15. Nge2 {[%clk 0:02:45.1]}
15... f5 {[%clk 0:02:41.4]} 16. exf5 {[%clk 0:02:44.3]} 16... Bxf5 {[%clk
0:02:41.6]} 17. Bxf5 {[%clk 0:02:44.2]} 17... Rxf5 {[%clk 0:02:42.5]} 18. Ng3
{[%clk 0:02:40.8]} 18... Nxg3 {[%clk 0:02:40]} 19. hxg3 {[%clk 0:02:40.8]} 19...
Nxb3 {[%clk 0:02:38.3]} 20. Qc2 {[%clk 0:02:41.1]} 20... Nd4 {[%clk 0:02:38.6]}
21. Qe4 {[%clk 0:02:40.5]} 21... h6 {[%clk 0:02:09.2]} 22. O-O {[%clk
0:02:37.3]} 22... Raf8 {[%clk 0:01:55.6]} 23. Rae1 {[%clk 0:02:36.9]} 23... Qg5
{[%clk 0:01:35.2]} 24. g4 {[%clk 0:02:28.2]} 24... Rf4 {[%clk 0:01:33.6]} 25.
Qd3 {[%clk 0:02:22.2]} 25... b6 {[%clk 0:01:30.5]} 26. Ne4 {[%clk 0:02:16.5]}
26... Qe7 {[%clk 0:01:30.6]} 27. Re3 {[%clk 0:02:08.2]} 27... R4f7 {[%clk
0:01:16.9]} 28. Nf2 {[%clk 0:02:07.4]} 28... Qd7 {[%clk 0:01:11.6]} 29. g5
{[%clk 0:01:58.5]} 29... hxg5 {[%clk 0:01:04.6]} 30. Qg6 {[%clk 0:01:58.7]}
30... Qf5 {[%clk 0:01:01.7]} 31. Qh5 {[%clk 0:01:53.5]} 31... g6 {[%clk
0:01:00.4]} 32. Qg4 {[%clk 0:01:49.9]} 32... Rh7 {[%clk 0:00:55.6]} 33. Qg3
{[%clk 0:01:42.5]} 33... Qf4 {[%clk 0:00:53.6]} 34. Qxf4 {[%clk 0:01:34.5]}
34... gxf4 {[%clk 0:00:53.3]} 35. Re4 {[%clk 0:01:31.8]} 35... Nf5 {[%clk
0:00:50]} 36. Rb1 {[%clk 0:01:23.1]} 36... Ng3 {[%clk 0:00:29.6]} 37. Ree1
{[%clk 0:01:18]} 37... Re7 {[%clk 0:00:19.5]} 38. Ne4 {[%clk 0:01:08.6]} 38...
Nxe4 {[%clk 0:00:15.5]} 39. Rxe4 {[%clk 0:01:07.9]} 39... Kg7 {[%clk 0:00:15.8]}
40. Rbe1 {[%clk 0:01:07.5]} 40... Kf6 {[%clk 0:00:15.3]} 41. Kf2 {[%clk
0:01:04.2]} 41... Rh8 {[%clk 0:00:14.9]} 42. Kg1 {[%clk 0:01:02.4]} 42... g5
{[%clk 0:00:14.9]} 43. Rd1 {[%clk 0:00:58.3]} 43... Reh7 {[%clk 0:00:14.9]} 44.
Kf2 {[%clk 0:00:57.1]} 44... Rh1 {[%clk 0:00:15.5]} 45. Ree1 {[%clk 0:00:52.3]}
45... Rxe1 {[%clk 0:00:15.4]} 46. Rxe1 {[%clk 0:00:53.2]} 46... Kf5 {[%clk
0:00:15.1]} 47. Rd1 {[%clk 0:00:50.8]} 47... g4 {[%clk 0:00:15.3]} 48. fxg4+
{[%clk 0:00:49.6]} 48... Kxg4 {[%clk 0:00:16.2]} 49. c5 {[%clk 0:00:48.8]} 49...
bxc5 {[%clk 0:00:15.2]} 50. Rb1 {[%clk 0:00:49.1]} 50... Kf5 {[%clk 0:00:12.3]}
51. Rb7 {[%clk 0:00:48.6]} 51... Ke4 {[%clk 0:00:11.1]} 52. Rxc7 {[%clk
0:00:46]} 52... Rb8 {[%clk 0:00:10.4]} 53. Ra7 {[%clk 0:00:44]} 53... Rb2+
{[%clk 0:00:10.8]} 54. Kg1 {[%clk 0:00:44.6]} 54... Kxd5 {[%clk 0:00:10.8]} 55.
Rxa5 {[%clk 0:00:44.7]} 55... Kd4 {[%clk 0:00:09.9]} 56. Ra6 {[%clk 0:00:44.8]}
56... d5 {[%clk 0:00:10.3]} 57. Ra8 {[%clk 0:00:42.4]} 57... c4 {[%clk
0:00:10.6]} 58. a4 {[%clk 0:00:43]} 58... Ra2 {[%clk 0:00:11.1]} 59. a5 {[%clk
0:00:43.3]} 59... c3 {[%clk 0:00:11.9]} 60. Kh2 {[%clk 0:00:41.5]} 60... c2
{[%clk 0:00:11.2]} 61. Rc8 {[%clk 0:00:40.6]} 61... Kd3 {[%clk 0:00:11.6]} 62.
Rc5 {[%clk 0:00:39.7]} 62... d4 {[%clk 0:00:11.3]} 63. Kh3 {[%clk 0:00:38.5]}
63... e4 {[%clk 0:00:11.6]} 64. g4 {[%clk 0:00:36.3]} 64... fxg3 {[%clk
0:00:11.6]} 65. Kxg3 {[%clk 0:00:36.8]} 65... e3 {[%clk 0:00:12.3]} 66. Kf3
{[%clk 0:00:37]} 66... Kd2 {[%clk 0:00:11.9]} 67. Ke4 {[%clk 0:00:34.6]} 67...
d3 {[%clk 0:00:11.5]} 68. Rh5 {[%clk 0:00:32.5]} 68... c1=Q {[%clk 0:00:11.3]}
69. Rh2+ {[%clk 0:00:32.7]} 69... e2 {[%clk 0:00:11.8]} 0-1